bitfinex/quotes_BTCUSD_20240826
["timestamp","ask_amount","ask_price","bid_price","bid_amount"]
[1724680851758,0.00100001,63871.0,63870.0,2.28097407]
[1724680851974,0.00100001,63871.0,63870.0,2.30097407]
[1724680852182,0.00100001,63871.0,63870.0,2.05706586]
[1724680852388,0.00100001,63871.0,63870.0,1.89404363]
[1724680852598,1e-08,63871.0,63870.0,1.88004363]
[1724680853032,1e-08,63871.0,63870.0,1.68284363]
[1724680853268,1e-08,63871.0,63870.0,1.34670763]
[1724680853687,1e-08,63871.0,63870.0,1.65984363]
[1724680853895,0.00100001,63871.0,63870.0,1.67384363]
[1724680854103,0.00100001,63871.0,63870.0,1.68784363]
[1724680854516,0.00100001,63871.0,63870.0,1.69684363]
[1724680854719,0.00100001,63871.0,63870.0,1.71084363]
[1724680854924,1e-08,63871.0,63870.0,1.69684363]
[1724680855133,0.00100001,63871.0,63870.0,1.69684363]
[1724680855552,0.00100001,63871.0,63870.0,1.71084363]
[1724680855724,1e-08,63871.0,63870.0,1.69684363]
[1724680855980,0.00100001,63871.0,63870.0,1.71084363]
[1724680858022,0.00100001,63871.0,63870.0,1.69376551]
[1724680858231,0.00100001,63871.0,63870.0,1.71083902]
[1724680859102,0.00100001,63871.0,63870.0,1.38062951]
[1724680859321,0.35220001,63871.0,63870.0,1.35762951]
[1724680859962,0.35220001,63871.0,63870.0,0.2054755]
[1724680860167,0.35220001,63871.0,63870.0,0.0489075]
[1724680860377,0.35927918,63871.0,63870.0,0.2054755]
[1724680860805,0.35927918,63871.0,63870.0,0.0489075]
[1724680861018,0.82897518,63871.0,63870.0,0.0349075]
[1724680861232,0.82897518,63871.0,63849.0,0.0009064]
[1724680861233,0.31315,63867.0,63849.0,0.0009064]
[1724680861442,0.516694,63859.0,63849.0,0.0009064]
[1724680861887,0.83289028,63859.0,63849.0,0.0009064]
[1724680862144,1.14607928,63859.0,63849.0,0.0009064]
[1724680862372,0.469851,63850.0,63849.0,0.0009064]
[1724680862578,0.98712901,63850.0,63849.0,0.0009064]
[1724680862785,1.30438135,63850.0,63849.0,0.0009064]
[1724680863003,1.30438135,63850.0,63816.0,0.4716]
[1724680863004,0.1953,63838.0,63816.0,0.4716]
[1724680863251,0.1682,63836.0,63818.0,0.46876099]
[1724680863459,0.1682,63836.0,63809.0,0.4716]
[1724680863460,0.209,63827.0,63815.0,0.313402]
[1724680863676,0.209,63827.0,63817.0,0.313395]
[1724680863677,0.00391761,63826.0,63817.0,0.313395]
[1724680863888,0.00689313,63826.0,63820.0,0.156689]
[1724680864097,0.209,63827.0,63826.0,0.156675]
[1724680864330,0.209,63827.0,63825.0,0.156676]
[1724680864555,0.209,63827.0,63816.0,0.15617801]
[1724680864770,0.209,63827.0,63826.0,0.470026]
[1724680864979,0.1966,63832.0,63831.0,0.156661]
[1724680865191,0.1966,63832.0,63826.0,0.15617801]
[1724680865396,0.1966,63832.0,63821.0,0.1]
[1724680865397,0.1966,63832.0,63831.0,0.156663]
[1724680865832,0.1966,63832.0,63831.0,0.023]
[1724680866038,0.20051686,63832.0,63828.0,0.15667]
[1724680866242,0.00391688,63831.0,63829.0,0.179667]
[1724680866449,0.1976,63832.0,63831.0,0.156663]
[1724680866660,0.1976,63832.0,63829.0,0.023]
[1724680866877,0.1976,63832.0,63827.0,0.1]
[1724680866878,0.156664,63831.0,63827.0,0.1]
[1724680867097,0.00391707,63830.0,63823.0,0.156683]
[1724680867304,0.1926,63822.0,63808.0,0.03019962]
[1724680867511,0.1524,63821.0,63817.0,0.1]
[1724680867722,0.1563177,63821.0,63810.0,0.1]
[1724680867940,0.16031385,63821.0,63814.0,0.156704]
[1724680868153,0.31700185,63821.0,63815.0,0.1]
[1724680868457,0.31700185,63821.0,63811.0,0.46960201]
[1724680868458,0.1988,63820.0,63808.0,0.313438]
[1724680868674,0.1988,63820.0,63804.0,0.009053]
[1724680868675,0.00391807,63819.0,63812.0,0.156708]
[1724680868881,0.1988,63820.0,63814.0,0.156704]
[1724680869093,0.1988,63820.0,63813.0,0.15617801]
[1724680869295,0.1988,63820.0,63817.0,0.156696]
[1724680869704,0.1988,63820.0,63817.0,0.313395]
[1724680869921,0.1988,63820.0,63815.0,0.313403]
[1724680870136,0.00391768,63819.0,63817.0,0.156697]
[1724680870342,0.1988,63820.0,63818.0,0.156694]
[1724680870556,0.1988,63820.0,63816.0,0.023]
[1724680870762,0.1988,63820.0,63817.0,0.156697]
[1724680871028,0.1988,63820.0,63815.0,0.313402]
[1724680871029,0.00391772,63819.0,63808.0,0.001]
[1724680871235,0.156703,63815.0,63806.0,0.009075]
[1724680871496,0.15821805,63814.0,63807.0,0.31344]
[1724680871772,0.1543,63814.0,63813.0,0.313415]
[1724680872030,0.3499,63822.0,63813.0,0.25617801]
[1724680872284,0.3499,63822.0,63821.0,0.470064]
[1724680872560,0.3757,63831.0,63821.0,0.15617801]
[1724680872832,0.3757,63831.0,63828.0,0.156668]
[1724680873071,0.3757,63831.0,63827.0,0.156671]
[1724680873503,0.3757,63831.0,63830.0,0.156666]
[1724680873707,0.4692,63839.0,63828.0,0.023]
[1724680873956,0.3571,63840.0,63829.0,0.15617801]
[1724680874200,0.3571,63840.0,63836.0,0.156649]
[1724680874711,0.3571,63840.0,63830.0,0.313327]
[1724680874712,0.3571,63840.0,63831.0,0.313324]
[1724680874942,0.156648,63838.0,63829.0,0.156666]
[1724680875149,0.156648,63838.0,63830.0,0.023]
[1724680875362,0.1605668,63837.0,63829.0,0.157666]
[1724680875569,0.2083,63836.0,63830.0,0.023]
[1724680875776,0.2083,63836.0,63830.0,0.179665]
[1724680875777,0.00391682,63835.0,63830.0,0.179665]
[1724680875986,0.2083,63836.0,63834.0,0.156654]
[1724680876446,0.2083,63836.0,63833.0,0.156657]
[1724680876652,0.2081115,63836.0,63835.0,0.156653]
[1724680877008,0.2081115,63836.0,63835.0,0.46996]
[1724680877637,0.2121115,63836.0,63835.0,0.46996]
[1724680878299,0.2081115,63836.0,63835.0,0.46996]
[1724680878719,0.002,63836.0,63835.0,0.46996]
[1724680878928,0.002,63836.0,63835.0,1.37575201]
[1724680879131,0.002,63836.0,63835.0,0.279653]
[1724680879337,0.002,63836.0,63835.0,0.1]
[1724680879541,0.158651,63836.0,63835.0,0.1]
[1724680879740,0.2052,63836.0,63835.0,0.1]
[1724680879901,0.2092,63836.0,63834.0,0.0009075]
[1724680880880,0.2052,63836.0,63834.0,0.0009075]
[1724680881083,0.2032,63836.0,63834.0,0.0009075]
[1724680881305,0.2072,63836.0,63834.0,0.0009075]
[1724680881731,0.6372767,63835.0,63834.0,0.0009075]
[1724680881934,1.29986171,63835.0,63834.0,0.0009075]
[1724680882156,1.61416871,63835.0,63834.0,0.0009075]
[1724680882564,1.61516871,63835.0,63834.0,0.0009075]
[1724680882781,1.61516871,63835.0,63804.0,0.009053]
[1724680882782,0.002,63826.0,63804.0,0.009053]
[1724680882997,0.1634,63822.0,63807.0,0.46876099]
[1724680883207,0.1634,63820.0,63804.0,0.165782]
[1724680883422,0.1931,63812.0,63804.0,0.009053]
[1724680883720,0.156721,63808.0,63804.0,0.009053]
[1724680883942,0.00391871,63809.0,63804.0,0.009053]
[1724680884168,0.16731863,63810.0,63807.0,0.001]
[1724680884373,0.1634,63810.0,63807.0,0.001]
[1724680884779,0.156672,63828.0,63808.0,0.15617801]
[1724680884985,0.3565,63832.0,63820.0,0.156689]
[1724680884986,0.15667,63829.0,63820.0,0.156689]
[1724680885409,0.3565,63832.0,63821.0,0.15617801]
[1724680885614,0.1931,63832.0,63831.0,0.783317]
[1724680885825,0.3565,63837.0,63834.0,0.156655]
[1724680886028,0.3565,63837.0,63834.0,0.156654]
[1724680886239,0.3565,63837.0,63836.0,0.156651]
[1724680886484,0.3565,63837.0,63836.0,0.469953]
[1724680886485,0.1931,63837.0,63836.0,0.469953]
[1724680886690,0.3392,63842.0,63836.0,0.469952]
[1724680886895,0.3392,63842.0,63839.0,0.156642]
[1724680887090,0.1758,63842.0,63838.0,0.31329]
[1724680887291,0.1758,63842.0,63822.0,0.2914]
[1724680887292,0.00391624,63841.0,63828.0,0.313338]
[1724680887520,0.00391624,63841.0,63829.0,0.27917801]
[1724680887722,0.00391624,63841.0,63830.0,0.313331]
[1724680887927,0.00391624,63841.0,63832.0,0.156659]
[1724680888128,0.00391624,63841.0,63831.0,0.27917801]
[1724680888129,0.31719724,63841.0,63831.0,0.123]
[1724680888374,0.31719724,63841.0,63831.0,0.179662]
[1724680888591,0.00491624,63841.0,63834.0,0.156655]
[1724680888847,0.001,63841.0,63832.0,0.1]
[1724680889050,0.1758,63842.0,63835.0,0.156652]
[1724680889185,0.1758,63842.0,63833.0,0.023]
[1724680889384,0.1758,63842.0,63836.0,0.15665]
[1724680889385,0.005,63841.0,63836.0,0.15665]
[1724680889611,0.005,63841.0,63834.0,0.313311]
[1724680889763,0.005,63841.0,63835.0,0.023]
[1724680890182,0.012,63841.0,63833.0,0.179657]
[1724680890387,0.012,63841.0,63834.0,0.156654]
[1724680890592,0.012,63841.0,63833.0,0.023]
[1724680890593,0.00391655,63840.0,63833.0,0.023]
[1724680890795,0.00391655,63840.0,63833.0,0.179657]
[1724680891003,0.001825,63841.0,63833.0,0.023]
[1724680891235,0.002825,63841.0,63834.0,0.156655]
[1724680891438,0.002825,63841.0,63833.0,0.023]
[1724680891439,0.001825,63841.0,63835.0,0.156653]
[1724680891783,0.003,63840.0,63835.0,0.313306]
[1724680891981,0.003,63840.0,63839.0,0.469932]
[1724680892234,0.003,63840.0,63837.0,0.156646]
[1724680892378,0.003,63840.0,63838.0,0.023]
[1724680892577,0.003,63840.0,63838.0,0.179645]
[1724680892962,0.003,63840.0,63834.0,0.313308]
[1724680893157,0.000825,63841.0,63835.0,0.023]
[1724680893364,0.000825,63841.0,63833.0,0.023]
[1724680893686,0.00391657,63840.0,63833.0,0.023]
[1724680893888,0.00391657,63840.0,63835.0,0.156652]
[1724680894089,0.00391657,63840.0,63833.0,0.179657]
[1724680894294,0.16055857,63840.0,63834.0,0.1]
[1724680894519,0.00391655,63839.0,63833.0,0.023]
[1724680894718,0.00391655,63839.0,63835.0,0.001]
[1724680894922,0.00391655,63839.0,63833.0,0.179658]
[1724680894923,0.00391655,63839.0,63834.0,0.1]
[1724680895471,0.313296,63838.0,63833.0,0.001]
[1724680895686,0.16056255,63839.0,63831.0,0.156662]
[1724680895916,0.000825,63841.0,63835.0,0.002]
[1724680896327,0.000825,63841.0,63832.0,0.123]
[1724680896328,0.156646,63838.0,63832.0,0.123]
[1724680896496,0.156646,63838.0,63834.0,0.002]
[1724680896697,0.156653,63835.0,63834.0,0.002]
[1724680897112,1.43101014,63835.0,63834.0,0.002]
[1724680897285,2.01223846,63835.0,63834.0,0.002]
[1724680897652,2.32554546,63835.0,63834.0,0.002]
[1724680897852,2.32554546,63835.0,63806.0,0.009075]
[1724680897853,0.1794,63823.0,63806.0,0.009075]
[1724680897985,0.002,63824.0,63807.0,0.46876099]
[1724680897986,0.1794,63808.0,63807.0,0.46876099]
[1724680898163,0.1794,63808.0,63806.0,0.009075]
[1724680898372,0.00391839,63807.0,63806.0,0.009075]
[1724680898577,0.16291839,63807.0,63806.0,0.009075]
[1724680898857,0.1794,63808.0,63806.0,0.009075]
[1724680899513,0.1794,63808.0,63806.0,0.010075]
[1724680899727,0.1914,63819.0,63807.0,0.15617801]
[1724680899930,0.1914,63819.0,63808.0,0.3455]
[1724680900153,0.1914,63819.0,63811.0,0.31342]
[1724680900354,0.348093,63819.0,63812.0,0.15671]
[1724680900557,0.156698,63817.0,63809.0,0.31289401]
[1724680900765,0.1914,63819.0,63808.0,0.313437]
[1724680900978,0.313393,63818.0,63809.0,0.156716]
[1724680901188,0.156701,63816.0,63807.0,0.313444]
[1724680901398,0.1954,63819.0,63807.0,0.313444]
[1724680901399,0.001,63808.0,63807.0,0.783611]
[1724680901603,0.159,63820.0,63808.0,0.494038]
[1724680901801,0.002,63817.0,63815.0,0.156701]
[1724680902005,0.002,63817.0,63816.0,0.1567]
[1724680902720,0.002,63817.0,63816.0,0.1797]
[1724680902934,0.1871,63824.0,63818.0,0.156694]
[1724680904508,0.1871,63824.0,63816.0,0.0239075]
[1724680904648,0.156689,63821.0,63817.0,0.023]
[1724680904860,0.156689,63821.0,63818.0,0.001]
[1724680905079,0.470079,63819.0,63818.0,0.002]
[1724680905274,0.971165,63819.0,63818.0,0.002]
[1724680905857,1.284551,63819.0,63818.0,0.002]
[1724680906266,0.971165,63819.0,63818.0,0.002]
[1724680906475,0.971165,63819.0,63818.0,0.001]
[1724680907605,0.971165,63819.0,63816.0,0.0009075]
[1724680907606,0.470094,63817.0,63816.0,0.0009075]
[1724680908335,0.78349,63817.0,63816.0,0.0009075]
[1724680909665,0.78549,63817.0,63816.0,0.0009075]
[1724680909814,0.004,63817.0,63816.0,0.0009075]
[1724680910022,0.160698,63817.0,63816.0,0.0009075]
[1724680910220,0.16461587,63817.0,63816.0,0.0009075]
[1724680910455,0.65521187,63817.0,63816.0,0.0009075]
[1724680910618,0.96860787,63817.0,63816.0,0.0009075]
[1724680910822,1.28200387,63817.0,63816.0,0.0009075]
[1724680911023,1.43500387,63817.0,63816.0,0.0009075]
[1724680911837,0.3342,63817.0,63816.0,0.0009075]
[1724680912038,0.004,63817.0,63816.0,0.0009075]
[1724680912568,0.004,63817.0,63816.0,0.1576075]
[1724680912742,0.004,63817.0,63816.0,0.4940085]
[1724680912949,0.004,63817.0,63816.0,0.8074095]
[1724680913964,0.004,63817.0,63816.0,1.45698851]
[1724680914164,0.004,63817.0,63816.0,2.01578951]
[1724680915189,0.002,63817.0,63816.0,2.01578951]
[1724680915750,0.002,63817.0,63816.0,2.03175949]
[1724680915873,0.000825,63829.0,63828.0,0.970255]
[1724680916075,0.000825,63829.0,63828.0,1.61357501]
[1724680916300,0.000825,63829.0,63828.0,1.30023301]
[1724680917627,0.000825,63829.0,63828.0,0.96253301]
[1724680918524,0.001825,63829.0,63828.0,0.97253301]
[1724680919106,0.001825,63829.0,63828.0,0.98153301]
[1724680919107,0.002825,63829.0,63828.0,0.98153301]
[1724680920402,0.00263644,63829.0,63828.0,0.98153301]
[1724680921686,0.00263644,63829.0,63828.0,1.57937501]
[1724680922096,0.00263644,63829.0,63828.0,2.04401701]
[1724680922299,0.00263644,63829.0,63828.0,2.06107117]
[1724680923364,0.00163644,63829.0,63828.0,2.36541317]
[1724680923541,0.00063644,63829.0,63828.0,2.35541317]
[1724680923809,0.00163644,63829.0,63828.0,2.45753113]
[1724680924051,0.000825,63841.0,63840.0,2.059856]
[1724680924266,0.000825,63841.0,63840.0,2.31603401]
[1724680924480,0.000825,63841.0,63840.0,2.32857543]
[1724680925114,0.000825,63841.0,63840.0,2.36939007]
[1724680925352,0.000825,63841.0,63840.0,2.35057543]
[1724680925554,0.000825,63841.0,63840.0,2.35157543]
[1724680926180,0.000825,63841.0,63840.0,2.02575101]
[1724680926613,0.000825,63841.0,63840.0,2.03875101]
[1724680926821,0.000825,63841.0,63840.0,2.05275101]
[1724680927026,0.000825,63841.0,63840.0,2.05422132]
[1724680927228,0.000825,63841.0,63840.0,2.04022132]
[1724680927433,0.000825,63841.0,63840.0,2.05422132]
[1724680927665,0.000825,63841.0,63840.0,2.06822132]
[1724680928097,0.000825,63841.0,63840.0,2.7259324]
[1724680928315,0.000825,63841.0,63840.0,2.4126494]
[1724680928529,0.000825,63841.0,63840.0,2.43145736]
[1724680928735,0.000825,63841.0,63840.0,2.41745736]
[1724680928937,0.000825,63841.0,63840.0,2.06002928]
[1724680929146,0.001825,63841.0,63840.0,1.73674628]
[1724680929406,0.001825,63841.0,63840.0,1.73193832]
[1724680929610,0.000825,63841.0,63840.0,1.71793832]
[1724680929823,0.000825,63841.0,63840.0,2.33150432]
[1724680930030,0.000825,63841.0,63840.0,2.6889324]
[1724680930031,0.001825,63841.0,63840.0,2.6889324]
[1724680930250,0.001825,63841.0,63840.0,2.7029324]
[1724680930461,0.000825,63841.0,63840.0,2.6979324]
[1724680930894,0.000825,63841.0,63840.0,2.7119324]
[1724680931824,0.000825,63841.0,63840.0,2.75625417]
[1724680932053,0.001825,63841.0,63840.0,2.7259324]
[1724680932257,0.001825,63841.0,63840.0,2.7119324]
[1724680932660,0.001825,63841.0,63840.0,2.7259324]
[1724680933077,0.000825,63841.0,63840.0,2.7119324]
[1724680933283,0.001825,63841.0,63840.0,2.7259324]
[1724680934570,0.46876099,63870.0,63869.0,0.78285]
[1724680934776,0.46876099,63870.0,63869.0,1.03902801]
[1724680934983,0.1431,63872.0,63870.0,0.469704]
[1724680935188,0.1431,63872.0,63870.0,0.62588201]
[1724680935397,0.1431,63872.0,63870.0,0.93901801]
[1724680935813,0.1431,63872.0,63870.0,1.25215401]
[1724680936009,0.1857,63875.0,63870.0,1.35215401]
[1724680936209,0.1857,63875.0,63870.0,1.35315401]
[1724680936429,0.3307,63884.0,63870.0,1.66629001]
[1724680936677,0.0245277,63888.0,63870.0,2.34272601]
[1724680936895,0.3307,63892.0,63870.0,2.34272601]
[1724680937111,0.3307,63892.0,63870.0,2.34172601]
[1724680937325,0.3307,63892.0,63870.0,2.35572601]
[1724680937528,0.3307,63892.0,63870.0,2.04259001]
[1724680938705,0.3307,63892.0,63870.0,2.02859001]
[1724680938910,0.00100001,63871.0,63870.0,2.04259001]
[1724680939139,0.00100001,63871.0,63870.0,2.05559001]
[1724680939293,0.00100001,63871.0,63870.0,1.69329001]
[1724680940583,0.00100001,63871.0,63870.0,1.38015401]
[1724680940782,0.00100001,63871.0,63870.0,1.90809001]
[1724680940915,0.00100001,63871.0,63870.0,1.90909001]
[1724680941130,0.00100001,63871.0,63870.0,2.22222601]
[1724680941326,0.00100001,63871.0,63870.0,2.40673387]
[1724680941693,0.1917,63895.0,63892.0,1.095598]
[1724680941867,0.46876099,63896.0,63892.0,1.35177601]
[1724680942064,0.1917,63902.0,63892.0,1.35177601]
[1724680942270,0.00825,63903.0,63892.0,2.15243201]
[1724680942597,0.00825,63903.0,63892.0,2.34085378]
[1724680942998,0.00825,63903.0,63892.0,2.36685378]
[1724680943216,0.00825,63903.0,63892.0,2.05382578]
[1724680943422,0.00825,63903.0,63892.0,2.39674832]
[1724680943694,0.00825,63903.0,63892.0,2.37974832]
[1724680943894,0.00925,63893.0,63892.0,2.39374832]
[1724680944143,0.00925,63893.0,63892.0,1.38877601]
[1724680944321,0.00925,63893.0,63892.0,1.36577601]
[1724680944738,0.01659025,63893.0,63892.0,1.36577601]
[1724680944940,0.00925,63893.0,63892.0,1.05274801]
[1724680945150,0.00825,63893.0,63892.0,1.03874801]
[1724680945574,0.00825,63893.0,63892.0,1.06674801]
[1724680945785,0.00825,63893.0,63892.0,1.07574801]
[1724680945983,0.18935,63893.0,63892.0,0.15617801]
[1724680946191,0.18935,63893.0,63892.0,0.32669201]
[1724680946390,0.18935,63893.0,63892.0,0.65372001]
[1724680946592,0.18935,63893.0,63892.0,0.95274801]
[1724680946706,0.18935,63893.0,63892.0,0.63972001]
[1724680946910,0.18935,63893.0,63892.0,0.32669201]
[1724680947110,0.18935,63893.0,63892.0,0.62572001]
[1724680947355,0.18935,63893.0,63892.0,0.72572001]
[1724680947872,0.18935,63893.0,63892.0,0.74872001]
[1724680948106,0.18935,63893.0,63892.0,0.43569201]
[1724680948314,0.18935,63893.0,63892.0,0.74872001]
[1724680948516,0.18935,63893.0,63892.0,0.76072001]
[1724680948718,0.18935,63893.0,63892.0,1.08774801]
[1724680949125,0.00825,63893.0,63892.0,1.40077601]
[1724680950372,0.00825,63893.0,63892.0,1.71380401]
[1724680951773,0.00825,63893.0,63892.0,2.03932742]
[1724680952410,0.00825,63893.0,63892.0,2.05499759]
[1724680953391,0.00825,63893.0,63892.0,1.72947418]
[1724680953598,0.00825,63893.0,63892.0,1.73047418]
[1724680953773,0.00825,63893.0,63892.0,1.72947418]
[1724680956749,0.00825,63893.0,63892.0,1.71380401]
[1724680956977,0.00825,63893.0,63892.0,1.40077601]
[1724680958142,0.00825,63893.0,63892.0,1.06474801]
[1724680958811,0.00820633,63893.0,63892.0,1.06474801]
[1724680959012,0.00820633,63893.0,63892.0,1.37777601]
[1724680959820,0.00820633,63893.0,63892.0,1.71380401]
[1724680960694,0.00820633,63893.0,63892.0,2.02783201]
[1724680961426,0.00820633,63893.0,63892.0,1.71380401]
[1724680962074,0.00820633,63893.0,63892.0,1.68780401]
[1724680962280,0.00820633,63893.0,63892.0,1.70180401]
[1724680962481,0.00820633,63893.0,63892.0,1.71580401]
[1724680962766,0.00820633,63893.0,63892.0,1.38877601]
[1724680962966,0.00820633,63893.0,63892.0,1.36577601]
[1724680963636,0.00820633,63893.0,63892.0,1.37977601]
[1724680963844,0.00820633,63893.0,63892.0,1.35177601]
[1724680964806,0.00820633,63893.0,63892.0,1.37477601]
[1724680965213,0.00820633,63893.0,63892.0,1.38877601]
[1724680966045,0.00820633,63893.0,63892.0,1.40277601]
[1724680966253,0.00820633,63893.0,63892.0,1.38877601]
[1724680966455,0.00820633,63893.0,63892.0,1.37477601]
[1724680966656,0.00820633,63893.0,63892.0,0.81057]
[1724680966865,0.00820633,63893.0,63892.0,0.96674801]
[1724680967111,0.00820633,63893.0,63892.0,1.25177601]
[1724680967741,0.00820633,63893.0,63892.0,0.95274801]
[1724680968136,0.00820633,63893.0,63892.0,0.97574801]
[1724680968401,0.00820633,63893.0,63892.0,0.74872001]
[1724680968623,0.00820633,63893.0,63892.0,0.76272001]
[1724680968829,0.00820633,63893.0,63892.0,1.07574801]
[1724680969047,0.00820633,63893.0,63892.0,1.06174801]
[1724680969471,0.00820633,63893.0,63892.0,1.07374801]
[1724680969678,0.00820633,63893.0,63892.0,1.08774801]
[1724680970926,0.00820633,63893.0,63892.0,1.40077601]
[1724680971754,0.00820633,63893.0,63892.0,1.41251766]
[1724680972196,0.18930633,63893.0,63892.0,1.09948966]
[1724680972808,0.00820633,63893.0,63892.0,1.09948966]
[1724680973015,0.00820633,63893.0,63892.0,1.41251766]
[1724680973221,0.00820633,63893.0,63892.0,1.09948966]
[1724680973430,0.00820633,63893.0,63892.0,1.41251766]
[1724680976932,0.00820633,63893.0,63892.0,1.72645316]
[1724680977448,0.00820633,63893.0,63892.0,1.72645232]
[1724680978658,0.33160633,63893.0,63892.0,1.06539632]
[1724680978923,0.33160633,63893.0,63892.0,1.07839632]
[1724680978924,0.00820633,63893.0,63892.0,1.07839632]
[1724680979191,0.00820633,63893.0,63892.0,0.12564831]
[1724680979433,0.32770633,63893.0,63892.0,0.12664831]
[1724680979720,0.32770633,63893.0,63892.0,0.0149075]
[1724680979940,0.32770633,63893.0,63892.0,0.0269075]
[1724680980661,0.32770633,63893.0,63892.0,0.18308551]
[1724680980906,0.32770633,63893.0,63892.0,0.28083276]
[1724680981367,0.32770633,63893.0,63892.0,0.26908551]
[1724680981612,0.32770633,63893.0,63892.0,0.1009075]
[1724680982045,0.32770633,63893.0,63892.0,0.1139075]
[1724680982523,0.32770633,63893.0,63892.0,0.1009075]
[1724680982746,0.32770633,63893.0,63892.0,0.44834805]
[1724680982951,0.00820633,63893.0,63892.0,1.3884282]
[1724680983154,0.00820633,63893.0,63892.0,1.0744002]
[1724680983570,0.00820633,63893.0,63892.0,1.0774002]
[1724680983768,0.00820633,63893.0,63892.0,1.0754002]
[1724680984179,0.00820633,63893.0,63892.0,1.0794002]
[1724680984593,0.00820633,63893.0,63892.0,1.0754002]
[1724680984798,0.00820633,63893.0,63892.0,1.0814002]
[1724680984999,0.00820633,63893.0,63892.0,1.3944282]
[1724680985123,0.00820633,63893.0,63892.0,1.3994282]
[1724680985328,0.00820633,63893.0,63892.0,1.5839282]
[1724680985530,0.00820633,63893.0,63892.0,1.7233282]
[1724680985754,0.00820633,63893.0,63892.0,1.76518888]
[1724680985961,0.00820633,63893.0,63892.0,1.77318405]
[1724680986155,0.00820633,63893.0,63892.0,1.71932337]
[1724680986596,0.00820633,63893.0,63892.0,1.72932337]
[1724680987237,0.00820633,63893.0,63892.0,1.77618373]
[1724680987646,0.00820633,63893.0,63892.0,1.72932337]
[1724680987849,0.00820633,63893.0,63892.0,1.58992337]
[1724680988700,0.00820633,63893.0,63892.0,1.40542337]
[1724680992219,0.00820633,63893.0,63892.0,1.40542052]
[1724680992638,0.00820633,63893.0,63892.0,1.39368351]
[1724680992849,0.00869848,63894.0,63893.0,0.783557]
[1724680993051,0.00869848,63894.0,63893.0,1.91916951]
[1724680993052,4.8e-07,63894.0,63893.0,1.91916951]
[1724680993259,4.8e-07,63894.0,63893.0,2.23219251]
[1724680993710,4.8e-07,63894.0,63893.0,2.54521551]
[1724680993914,0.00826,63905.0,63893.0,2.54521551]
[1724680993915,0.00826,63905.0,63903.0,0.157487]
[1724680994127,0.00826,63905.0,63903.0,1.16342561]
[1724680994334,0.00826,63905.0,63903.0,1.78937361]
[1724680994761,0.00826,63905.0,63903.0,1.78837361]
[1724680994993,0.00826,63905.0,63903.0,1.6992976]
[1724680995175,0.00826,63905.0,63903.0,1.43311969]
[1724680995386,0.00826,63905.0,63903.0,1.3863236]
[1724680995592,0.00826,63905.0,63903.0,1.38631817]
[1724680996423,0.00826,63905.0,63903.0,1.71490036]
[1724680996643,0.00826,63905.0,63903.0,1.90750036]
[1724680996848,0.00826,63905.0,63903.0,1.93450036]
[1724680997050,0.00826,63905.0,63903.0,1.92050036]
[1724680997222,0.00826,63905.0,63903.0,1.90750036]
[1724680997426,0.00826,63905.0,63903.0,1.92150036]
[1724680997650,0.00826,63905.0,63903.0,1.93550036]
[1724680998220,0.00826,63905.0,63903.0,1.40692636]
[1724680998625,0.00826,63905.0,63903.0,1.71989916]
[1724680999223,0.00826,63905.0,63903.0,1.73389916]
[1724680999639,0.00826,63905.0,63903.0,1.74289916]
[1724681000066,0.00826,63905.0,63903.0,1.72889916]
[1724681000268,0.00826,63905.0,63903.0,1.74289916]
[1724681000479,0.00826,63905.0,63903.0,1.72889916]
[1724681000680,0.00826,63905.0,63903.0,1.71489916]
[1724681000892,0.00826,63905.0,63903.0,1.72889916]
[1724681001094,0.00826,63905.0,63903.0,2.37767316]
[1724681001419,0.00101397,63904.0,63903.0,2.37767316]
[1724681002019,0.00101397,63904.0,63903.0,2.42441551]
[1724681002228,0.00101397,63904.0,63903.0,2.41041551]
[1724681002435,0.00101397,63904.0,63903.0,2.41040265]
[1724681002679,0.00101397,63904.0,63903.0,2.42440265]
[1724681002878,0.00101397,63904.0,63903.0,2.43379613]
[1724681003103,0.00101397,63904.0,63903.0,2.34967316]
[1724681003431,0.00011,63932.0,63923.0,0.785314]
[1724681003648,0.00011,63932.0,63931.0,0.157418]
[1724681003906,0.46876099,63933.0,63931.0,1.84873042]
[1724681004147,0.00825,63935.0,63931.0,1.84873042]
[1724681004148,0.00825,63935.0,63934.0,1.408699]
[1724681004363,0.00825,63935.0,63934.0,1.91502874]
[1724681004569,0.00018892,63947.0,63946.0,1.42019341]
[1724681004774,0.00018892,63947.0,63946.0,1.42288248]
[1724681005444,0.31778892,63947.0,63946.0,0.43555901]
[1724681005658,0.31778892,63947.0,63946.0,0.1]
[1724681005901,0.31778892,63947.0,63942.0,0.0452628]
[1724681006112,0.1813,63946.0,63943.0,0.17917801]
[1724681006327,0.18520978,63946.0,63944.0,0.1]
[1724681006540,0.1813,63946.0,63944.0,0.1]
[1724681006754,0.18520975,63946.0,63944.0,0.1]
[1724681006956,0.18520975,63946.0,63912.0,0.38293874]
[1724681006957,0.1437,63936.0,63915.0,0.1741]
[1724681007162,0.1437,63936.0,63921.0,0.15617801]
[1724681007163,0.1786,63935.0,63921.0,0.15617801]
[1724681007369,0.1786,63935.0,63915.0,0.1741]
[1724681007370,0.1786,63935.0,63934.0,0.156411]
[1724681007575,0.1786,63935.0,63934.0,0.31258901]
[1724681007988,0.1786,63935.0,63934.0,0.15617801]
[1724681008186,0.1786,63935.0,63929.0,0.156422]
[1724681008398,0.1786,63935.0,63915.0,0.1741]
[1724681008399,0.1786,63935.0,63930.0,0.15617801]
[1724681008616,0.1786,63935.0,63930.0,0.31259801]
[1724681008817,0.1786,63935.0,63932.0,0.156414]
[1724681009021,0.1786,63935.0,63933.0,0.15617801]
[1724681009436,0.1786,63935.0,63934.0,0.1]
[1724681009635,0.1786,63935.0,63934.0,0.129]
[1724681009865,0.1786,63935.0,63934.0,0.137]
[1724681010324,0.1786,63935.0,63934.0,0.129]
[1724681010804,0.335008,63935.0,63934.0,0.1]
[1724681011060,0.18132686,63935.0,63929.0,0.156422]
[1724681011260,0.18132686,63935.0,63933.0,0.006]
[1724681011902,0.18132686,63935.0,63934.0,0.17917801]